bitfinex/quotes_BTCUSD_20250602
["timestamp","ask_amount","ask_price","bid_price","bid_amount"]
[1748853129160,0.22662799,105900.0,105890.0,0.02854836]
[1748853129372,0.22662799,105900.0,105890.0,0.01977608]
[1748853129580,0.22662799,105900.0,105890.0,0.02635524]
[1748853129784,0.21718566,105900.0,105890.0,0.02854815]
[1748853129990,0.21718566,105900.0,105890.0,0.01977608]
[1748853130196,0.21718566,105900.0,105890.0,0.03512717]
[1748853130402,0.21718566,105900.0,105890.0,0.03687608]
[1748853130611,0.21718566,105900.0,105890.0,0.05222683]
[1748853130822,0.21718566,105900.0,105890.0,0.05222657]
[1748853131026,0.21718566,105900.0,105890.0,0.0522265]
[1748853131221,0.21718566,105900.0,105890.0,0.03512639]
[1748853131447,0.21718566,105900.0,105890.0,0.0351264]
[1748853131655,0.21718566,105900.0,105890.0,0.03512627]
[1748853132074,0.21718566,105900.0,105890.0,0.03512614]
[1748853132279,0.21718566,105900.0,105890.0,0.03512578]
[1748853132487,0.21718566,105900.0,105890.0,0.11542836]
[1748853132695,0.21718566,105900.0,105890.0,0.10007866]
[1748853132926,0.23606978,105900.0,105890.0,0.13312757]
[1748853133140,0.23606978,105900.0,105890.0,0.13312672]
[1748853133343,0.22662772,105900.0,105890.0,0.13312673]
[1748853133767,0.21718539,105900.0,105890.0,0.03512415]
[1748853133942,0.20774288,105900.0,105890.0,0.03512415]
[1748853134173,0.20774288,105900.0,105890.0,0.05232415]
[1748853134375,0.20774288,105900.0,105890.0,0.05232426]
[1748853134793,0.21718521,105900.0,105890.0,0.05232397]
[1748853135001,0.21718521,105900.0,105890.0,0.052324]
[1748853135628,0.21718521,105900.0,105890.0,0.03697608]
[1748853135864,0.21718521,105900.0,105890.0,0.05232391]
[1748853136079,0.21718521,105900.0,105890.0,0.04355372]
[1748853136302,0.21718521,105900.0,105890.0,0.05232358]
[1748853136484,0.20774234,105900.0,105890.0,0.05890102]
[1748853136723,0.2077418,105900.0,105890.0,0.39890102]
[1748853136919,0.2171844,105900.0,105890.0,0.38574606]
[1748853137125,0.22662718,105900.0,105890.0,0.39232299]
[1748853138154,0.22662718,105900.0,105890.0,0.38574606]
[1748853138331,0.22662718,105900.0,105890.0,0.39232169]
[1748853138549,0.22662718,105900.0,105890.0,0.37697608]
[1748853139611,0.22662718,105900.0,105890.0,0.38574496]
[1748853139811,0.22662718,105900.0,105890.0,0.37697608]
[1748853140003,0.23607005,105900.0,105890.0,0.37697608]
[1748853140218,0.23355005,105900.0,105890.0,0.38574503]
[1748853140422,0.22410718,105900.0,105890.0,0.38641984]
[1748853140844,0.22410718,105900.0,105890.0,0.38355274]
[1748853141047,0.22410718,105900.0,105890.0,0.37697608]
[1748853141182,0.22410718,105900.0,105890.0,0.38641984]
[1748853141391,0.2146644,105900.0,105890.0,0.39586342]
[1748853141625,0.00937538,105910.0,105900.0,0.57230019]
[1748853142017,0.6131485,105930.0,105920.0,0.34]
[1748853142018,1.12545868,105930.0,105920.0,0.34]
[1748853142220,1.42181868,105930.0,105920.0,0.34]
[1748853142624,1.12545868,105930.0,105920.0,0.374]
[1748853142811,1.42173868,105930.0,105920.0,0.374]
[1748853143019,1.42169868,105930.0,105920.0,0.374]
[1748853143654,1.03281868,105930.0,105920.0,0.374]
[1748853143839,0.00943939,105930.0,105920.0,0.25114393]
[1748853143991,0.04869588,105930.0,105920.0,0.21714393]
[1748853144197,0.05813589,105930.0,105920.0,0.21714393]
[1748853145926,0.05813589,105930.0,105920.0,0.21714411]
[1748853146141,0.03069588,105930.0,105920.0,0.22658457]
[1748853146361,0.04013589,105930.0,105920.0,0.22658457]
[1748853146794,0.00237726,105930.0,105920.0,0.69713887]
[1748853147002,0.00237726,105930.0,105920.0,0.712424]
[1748853147242,0.00237726,105930.0,105920.0,0.69532339]
[1748853147418,0.00237726,105930.0,105920.0,0.68658898]
[1748853147585,0.01181674,105930.0,105920.0,0.68658898]
[1748853147788,0.00237726,105930.0,105920.0,0.68658415]
[1748853148022,0.01181665,105930.0,105920.0,0.68003887]
[1748853148219,0.01181665,105930.0,105920.0,0.6865839]
[1748853148429,0.00237726,105930.0,105920.0,0.68658275]
[1748853149098,0.00237726,105930.0,105920.0,0.68658088]
[1748853149300,0.01181674,105930.0,105920.0,0.68657985]
[1748853149505,0.01181674,105930.0,105920.0,0.68003887]
[1748853149941,0.02890073,105930.0,105920.0,0.68003887]
[1748853150947,0.01946125,105930.0,105920.0,0.69743887]
[1748853152755,0.02890073,105930.0,105920.0,0.69743887]
[1748853152957,0.01946125,105930.0,105920.0,0.68003887]
[1748853153159,0.02890064,105930.0,105920.0,0.68003887]
[1748853154589,0.01946125,105930.0,105920.0,0.68003887]
[1748853155007,0.01946125,105930.0,105920.0,0.69783887]
[1748853155180,0.01946125,105930.0,105920.0,0.68003887]
[1748853155809,0.02890064,105930.0,105920.0,0.68003887]
[1748853157656,0.01946125,105930.0,105920.0,0.68003887]
[1748853157863,0.01946125,105930.0,105920.0,0.69813887]
[1748853158470,0.01946125,105930.0,105920.0,0.68003887]
[1748853158709,0.01946125,105930.0,105920.0,0.77255009]
[1748853158919,0.01946125,105930.0,105920.0,0.68003887]
[1748853160252,0.02890064,105930.0,105920.0,0.68003887]
[1748853160659,0.01946125,105930.0,105920.0,0.68003887]
[1748853161068,0.44041021,105930.0,105920.0,0.55714411]
[1748853161256,0.46229303,105930.0,105920.0,0.56658457]
[1748853161461,0.44539303,105930.0,105920.0,0.56658457]
[1748853162278,0.06220287,105930.0,105920.0,0.56658457]
[1748853162484,0.19828155,105910.0,105900.0,0.00657443]
[1748853162687,0.19828155,105910.0,105890.0,0.01977608]
[1748853162688,0.21284095,105900.0,105890.0,0.01977608]
[1748853162890,1.03180093,105900.0,105890.0,0.01977608]
[1748853163132,0.63917094,105900.0,105890.0,0.01977608]
[1748853163888,0.73502524,105900.0,105890.0,0.01977608]
[1748853164098,1.12765523,105900.0,105890.0,0.01977608]
[1748853164623,1.12765523,105900.0,105890.0,0.01931808]
[1748853164829,0.73502524,105900.0,105890.0,0.01931808]
[1748853165060,0.63917094,105900.0,105890.0,0.35931808]
[1748853165234,0.32252224,105900.0,105890.0,0.55763699]
[1748853165444,0.33196466,105900.0,105890.0,0.56708048]
[1748853165635,0.73403734,105900.0,105890.0,0.56708057]
[1748853165854,0.73403734,105900.0,105890.0,0.57652397]
[1748853166097,0.92285475,105900.0,105890.0,0.57652406]
[1748853166301,0.92285475,105900.0,105890.0,0.01931808]
[1748853166499,0.93561094,105900.0,105890.0,0.35931808]
[1748853170653,0.91851094,105900.0,105890.0,0.35931808]
[1748853170807,0.91851094,105900.0,105890.0,0.01931808]
[1748853171015,0.91851094,105900.0,105890.0,0.35931808]
[1748853171592,0.93591094,105900.0,105890.0,0.35931808]
[1748853173544,0.63967094,105900.0,105890.0,0.35931808]
[1748853173757,0.22964095,105900.0,105890.0,0.35931808]
[1748853173936,0.91847094,105900.0,105890.0,0.35931808]
[1748853176529,0.93557094,105900.0,105890.0,0.35931808]
[1748853180356,0.91847094,105900.0,105890.0,0.35931808]
[1748853180777,5.61865845,105900.0,105890.0,0.01931808]
[1748853181435,0.59098609,105870.0,105860.0,0.1983752]
[1748853181658,0.90388609,105870.0,105860.0,0.54786994]
[1748853181863,0.90388609,105870.0,105860.0,0.34949474]
[1748853182083,0.9908709,105870.0,105860.0,4.84e-05]
[1748853182299,0.72673606,105870.0,105860.0,4.84e-05]
[1748853182507,0.72673606,105870.0,105860.0,0.20786977]
[1748853182508,0.90631708,105870.0,105860.0,0.20786977]
[1748853182717,0.90631708,105870.0,105860.0,0.3400484]
[1748853182928,0.8968719,105870.0,105860.0,0.3400484]
[1748853183171,0.94491275,105870.0,105860.0,0.3400484]
[1748853183386,0.94491275,105870.0,105860.0,4.84e-05]
[1748853183387,5.55306534,105870.0,105860.0,4.84e-05]
[1748853184020,5.55306534,105870.0,105850.0,0.11315742]
[1748853184021,5.13556786,105860.0,105850.0,0.11315742]
[1748853184229,5.41625338,105860.0,105850.0,0.11320582]
[1748853184445,5.02362339,105860.0,105850.0,0.11320582]
[1748853184649,5.41625338,105860.0,105850.0,0.11320582]
[1748853184880,5.02362339,105860.0,105850.0,0.11320582]
[1748853185313,5.41625338,105860.0,105850.0,0.11320582]
[1748853185530,4.83879217,105860.0,105850.0,0.11320582]
[1748853185784,5.22819217,105860.0,105850.0,0.11320582]
[1748853186411,5.62082216,105860.0,105850.0,0.11320582]
[1748853186840,5.62082216,105860.0,105850.0,0.10970835]
[1748853187079,5.62082216,105860.0,105820.0,0.07624494]
[1748853187080,0.22242113,105830.0,105820.0,0.07624494]
[1748853187292,1.13688542,105830.0,105820.0,0.0767322]
[1748853187511,1.13688542,105830.0,105820.0,0.00048726]
[1748853187728,1.22939662,105830.0,105820.0,0.00048726]
[1748853188147,0.83676663,105830.0,105820.0,0.00048726]
[1748853188380,0.74620542,105830.0,105820.0,0.00039977]
[1748853188589,1.13708542,105830.0,105820.0,0.00039977]
[1748853189232,1.13744923,105830.0,105820.0,0.00039977]
[1748853189431,1.16518709,105830.0,105820.0,0.00039977]
[1748853189841,1.16518709,105830.0,105820.0,0.00910705]
[1748853190060,1.25769831,105830.0,105820.0,0.00910704]
[1748853190272,5.26757909,105830.0,105820.0,0.00039977]
[1748853191193,5.24997909,105830.0,105820.0,0.00039977]
[1748853191640,1.14742709,105830.0,105820.0,0.00039977]
[1748853191869,0.02773786,105830.0,105820.0,0.18939995]
[1748853192095,0.44946112,105830.0,105820.0,0.2343051]
[1748853192365,0.60832833,105830.0,105820.0,0.20755545]
[1748853192574,0.99696591,105830.0,105820.0,0.00910535]
[1748853192773,0.98751698,105830.0,105820.0,0.00911023]
[1748853192933,0.98751698,105830.0,105820.0,0.00911026]
[1748853193138,1.0800282,105830.0,105820.0,0.00911026]
[1748853193339,0.98751698,105830.0,105820.0,0.00039977]
[1748853193678,1.01597415,105830.0,105820.0,0.00911056]
[1748853193976,1.01597415,105830.0,105820.0,0.00039977]
[1748853194191,1.01597415,105830.0,105820.0,0.00910763]
[1748853194764,1.01597415,105830.0,105820.0,0.00910628]
[1748853195020,1.01597415,105830.0,105820.0,0.00910618]
[1748853195175,1.01597415,105830.0,105820.0,0.00910614]
[1748853195357,1.01597415,105830.0,105820.0,0.00039977]
[1748853195554,1.01597415,105830.0,105820.0,0.00910601]
[1748853195761,1.10848537,105830.0,105820.0,0.00910601]
[1748853196136,1.10848537,105830.0,105820.0,0.00910452]
[1748853196350,1.11182845,105830.0,105820.0,0.00910447]
[1748853196552,1.14682845,105830.0,105820.0,0.00910447]
[1748853196755,1.14682845,105830.0,105820.0,0.00039977]
[1748853196948,1.14682845,105830.0,105820.0,0.00910512]
[1748853197235,1.14682845,105830.0,105820.0,0.00910514]
[1748853197526,1.23933967,105830.0,105820.0,0.00039977]
[1748853197754,5.24922045,105830.0,105820.0,0.00039977]
[1748853198949,5.23118045,105830.0,105820.0,0.00039977]
[1748853199123,4.43022665,105830.0,105820.0,0.34039977]
[1748853199327,5.30669167,105830.0,105820.0,0.34039977]
[1748853199526,1.22079967,105830.0,105820.0,0.34039977]
[1748853199939,1.12828845,105830.0,105820.0,0.34039977]
[1748853200340,0.83068845,105830.0,105820.0,0.34039977]
[1748853200545,1.12820845,105830.0,105820.0,0.34039977]
[1748853201136,1.11170845,105830.0,105820.0,0.34039977]
[1748853201319,1.11162845,105830.0,105820.0,0.34039977]
[1748853201708,1.11162845,105830.0,105820.0,0.34910522]
[1748853202124,1.11162845,105830.0,105820.0,0.34910521]
[1748853202303,1.13561528,105830.0,105820.0,0.34910755]
[1748853202538,1.13561528,105830.0,105820.0,0.3491075]
[1748853202769,1.13561528,105830.0,105820.0,0.34910748]
[1748853203204,1.11162845,105830.0,105820.0,0.34910748]
[1748853203644,1.11162845,105830.0,105820.0,0.34039977]
[1748853204115,1.12802845,105830.0,105820.0,0.34039977]
[1748853204790,1.13461808,105830.0,105820.0,0.34039977]
[1748853205008,1.13461808,105830.0,105820.0,0.34911675]
[1748853205452,1.23813967,105830.0,105820.0,0.34911677]
[1748853205670,1.23813967,105830.0,105820.0,0.34039977]
[1748853205671,1.24473289,105830.0,105820.0,0.34039977]
[1748853205889,1.23761967,105830.0,105820.0,0.34911784]
[1748853206106,1.15170236,105830.0,105820.0,0.34911784]
[1748853206775,1.15146236,105830.0,105820.0,0.34911784]
[1748853207223,1.15146236,105830.0,105820.0,0.32697178]
[1748853207490,1.15146236,105830.0,105820.0,0.00872552]
[1748853207723,1.15147573,105830.0,105820.0,0.00872552]
[1748853208190,0.02835162,105810.0,105800.0,0.2517007]
[1748853208403,0.02127807,105810.0,105800.0,0.26043711]
[1748853208613,0.02127807,105810.0,105800.0,0.26043687]
[1748853208804,0.02127807,105810.0,105800.0,0.2517007]
[1748853209038,0.02127807,105810.0,105800.0,0.26043681]
[1748853209244,0.02127807,105810.0,105800.0,0.60043681]
[1748853209245,0.03733666,105810.0,105800.0,0.60043681]
[1748853209451,0.04678747,105810.0,105800.0,0.60043681]
[1748853209675,0.04679889,105810.0,105800.0,0.59098564]
[1748853209904,0.02789736,105810.0,105800.0,0.60043681]
[1748853210163,0.02789736,105810.0,105800.0,0.68438002]
[1748853210379,0.03734799,105810.0,105800.0,0.60045182]
[1748853210793,0.61281361,105820.0,105810.0,0.3731]
[1748853210996,0.42536858,105820.0,105810.0,0.58977086]
[1748853211229,0.41874904,105820.0,105810.0,0.58101931]
[1748853211431,0.42536837,105820.0,105810.0,0.58976969]
[1748853211636,0.42536831,105820.0,105810.0,0.58976953]
[1748853211877,0.12832831,105820.0,105810.0,0.58976953]
[1748853212077,0.03496831,105820.0,105810.0,0.58976953]
[1748853212211,0.61448849,105820.0,105810.0,0.58976991]
[1748853212625,0.61449783,105820.0,105810.0,0.58978209]
[1748853212825,0.42549765,105820.0,105810.0,0.59923245]
[1748853213030,0.00662861,105820.0,105810.0,0.59923236]
[1748853213239,0.00662861,105820.0,105810.0,1.16877647]
[1748853213439,0.01656436,105830.0,105820.0,0.21734913]
[1748853213660,0.01656436,105830.0,105820.0,0.26061191]
[1748853213994,0.01656436,105830.0,105820.0,0.00876278]
[1748853213995,0.6225184,105830.0,105820.0,0.00876278]
[1748853214206,0.0283485,105820.0,105810.0,0.24181756]
[1748853214433,0.33487812,105820.0,105810.0,0.2505847]
[1748853214638,0.3258685,105820.0,105810.0,0.2505847]
[1748853214842,0.3258685,105820.0,105810.0,0.58181756]
[1748853215097,0.50541948,105820.0,105810.0,0.59058493]
[1748853215283,0.50541948,105820.0,105810.0,0.58113448]
[1748853215532,0.50541948,105820.0,105810.0,0.5642346]
[1748853215738,0.50541948,105820.0,105810.0,0.58313894]
[1748853216163,0.50541948,105820.0,105810.0,0.56423795]
[1748853216364,0.50541948,105820.0,105810.0,0.57368874]
[1748853216576,0.50541948,105820.0,105810.0,0.58313937]
[1748853216805,0.59877948,105820.0,105810.0,0.57368902]
[1748853216991,0.20789948,105820.0,105810.0,0.57369197]
[1748853217209,0.41902904,105820.0,105810.0,0.59259305]
[1748853217723,0.61747922,105820.0,105810.0,0.36577439]
[1748853217950,1.00101141,105820.0,105810.0,0.3676761]
[1748853218169,1.00101141,105820.0,105810.0,0.55737048]
[1748853218409,1.00610252,105820.0,105810.0,0.34877488]
[1748853218841,0.62057103,105820.0,105810.0,0.34877519]
[1748853219032,0.99665269,105820.0,105810.0,0.34877552]
[1748853219274,0.99665269,105820.0,105810.0,0.34]
[1748853219497,0.99665269,105820.0,105810.0,0.34877561]
[1748853219730,0.99665269,105820.0,105810.0,0.37472664]
[1748853219942,0.99665269,105820.0,105810.0,0.37540171]
[1748853220156,0.99665269,105820.0,105810.0,0.38417743]
[1748853220381,0.99665269,105820.0,105810.0,0.38417744]
[1748853220828,0.60367103,105820.0,105810.0,0.38417751]
[1748853221044,0.99665269,105820.0,105810.0,0.39362823]
[1748853221237,0.99665269,105820.0,105810.0,0.39362822]
[1748853221710,0.99665269,105820.0,105810.0,0.38485243]
[1748853221935,0.99665269,105820.0,105810.0,0.39362804]
[1748853222159,0.99665269,105820.0,105810.0,0.3936281]
[1748853223087,0.2508513,105830.0,105820.0,0.5563501]
[1748853223319,0.62791045,105830.0,105820.0,0.57524949]
[1748853223759,0.62791045,105830.0,105820.0,0.57524967]
[1748853224244,1.02089211,105830.0,105820.0,0.57524967]
[1748853224470,1.02089211,105830.0,105820.0,0.5563501]
[1748853225122,0.62929211,105830.0,105820.0,0.56579993]
[1748853225363,1.02089211,105830.0,105820.0,0.3579]
[1748853225600,1.01144344,105830.0,105820.0,0.3579]
[1748853226059,1.01144344,105830.0,105820.0,0.34]
[1748853227611,1.23074981,105830.0,105820.0,0.34]
[1748853227840,1.13823859,105830.0,105820.0,0.34]
[1748853229268,1.1702232,105830.0,105820.0,0.34]
[1748853232470,1.1538232,105830.0,105820.0,0.34]
[1748853233127,0.8555832,105830.0,105820.0,0.34]
[1748853233338,0.8555832,105830.0,105820.0,0.64290609]
[1748853233339,0.85372572,105830.0,105820.0,0.64290609]
[1748853233549,0.66862417,105830.0,105820.0,0.5810001]
[1748853233754,0.27774417,105830.0,105820.0,0.59044993]
[1748853233957,1.06156583,105830.0,105820.0,0.59989958]
[1748853234184,1.06156583,105830.0,105820.0,0.59989967]
[1748853234397,1.06156583,105830.0,105820.0,0.58349967]
[1748853234603,0.66858417,105830.0,105820.0,0.57404993]
[1748853234779,1.05211716,105830.0,105820.0,0.5646001]
[1748853235594,1.04266823,105830.0,105820.0,0.55515018]
[1748853235801,1.04266823,105830.0,105820.0,0.3567]
[1748853236575,1.04266823,105830.0,105820.0,0.36615]
[1748853237002,1.03297912,105830.0,105820.0,0.34]
[1748853237232,1.27058549,105830.0,105820.0,0.34]
[1748853237433,0.20791958,105810.0,105800.0,0.3742]
[1748853237657,0.60800994,105810.0,105800.0,0.5974981]
[1748853237798,0.05026428,105810.0,105800.0,0.5974981]
[1748853238027,0.04319118,105810.0,105800.0,0.6164007]
[1748853238236,0.44082428,105810.0,105800.0,0.6164007]
[1748853238434,0.44082428,105810.0,105800.0,0.61640013]
[1748853238857,0.44082428,105810.0,105800.0,0.61640005]
[1748853239272,0.45027482,105810.0,105800.0,0.61639998]
[1748853239460,0.45027482,105810.0,105800.0,0.60981791]
[1748853239734,0.45027482,105810.0,105800.0,0.61639998]
[1748853240059,0.15303482,105810.0,105800.0,0.61639998]
[1748853240265,0.15541208,105810.0,105800.0,0.61640163]
[1748853240463,0.03374109,105810.0,105800.0,0.61640163]
[1748853240671,0.03374109,105810.0,105800.0,1.46275759]
[1748853240672,0.03136383,105810.0,105800.0,1.46275759]
[1748853240879,0.45003378,105830.0,105820.0,0.21734913]
[1748853241080,0.64608787,105830.0,105820.0,0.58149975]
[1748853241442,0.65553698,105830.0,105820.0,0.59094931]
[1748853241654,0.46655465,105830.0,105820.0,0.59094931]
[1748853242329,0.44765758,105830.0,105820.0,0.58149975]
[1748853242537,0.44765758,105830.0,105820.0,0.59094931]
[1748853242959,0.13123883,105830.0,105820.0,0.60039878]
[1748853243170,0.13361618,105830.0,105820.0,0.62520454]
[1748853243380,0.13361618,105830.0,105820.0,0.62520412]
[1748853243586,0.14306467,105830.0,105820.0,0.6252061]
[1748853243979,0.14306467,105830.0,105820.0,0.61862417]
[1748853244179,0.14306467,105830.0,105820.0,0.61862193]
[1748853244180,0.15251334,105830.0,105820.0,0.61862193]
[1748853244623,0.18293224,105830.0,105820.0,0.61862193]
[1748853244816,0.18293224,105830.0,105820.0,0.62520384]
[1748853245263,0.18293224,105830.0,105820.0,0.61642831]
[1748853245473,0.18293224,105830.0,105820.0,0.62520185]
[1748853245692,0.19238108,105830.0,105820.0,0.62520185]
[1748853246080,0.18293224,105830.0,105820.0,0.62520185]
[1748853246629,0.18293224,105830.0,105820.0,0.62520033]
[1748853247053,0.18293215,105830.0,105820.0,0.62519674]
[1748853247271,0.18293215,105830.0,105820.0,0.38894858]
[1748853247272,0.37191536,105830.0,105820.0,0.38894858]
[1748853247489,0.75307118,105830.0,105820.0,0.37204858]
[1748853247910,0.8455824,105830.0,105820.0,0.36615]
[1748853248136,0.75307118,105830.0,105820.0,0.37559992]
[1748853248771,0.75307118,105830.0,105820.0,0.36615]
[1748853249463,0.75307118,105830.0,105820.0,0.3567]
[1748853250102,0.74362234,105830.0,105820.0,0.3567]
[1748853250312,0.35064068,105830.0,105820.0,0.3567]
[1748853250519,1.04062234,105830.0,105820.0,0.3567]
[1748853250946,1.04062234,105830.0,105820.0,0.36547081]
[1748853251366,1.04062234,105830.0,105820.0,0.36547086]
[1748853251574,1.04062234,105830.0,105820.0,0.36547088]
[1748853251897,1.04062234,105830.0,105820.0,0.3567]
[1748853252117,1.04062234,105830.0,105820.0,0.36547142]
[1748853252544,1.04062234,105830.0,105820.0,0.36547144]
[1748853253354,1.04062234,105830.0,105820.0,0.36547151]
[1748853254234,1.04030234,105830.0,105820.0,0.36547151]
[1748853255086,1.04030234,105830.0,105820.0,0.34]
[1748853255262,1.05790234,105830.0,105820.0,0.34]
[1748853255468,1.07590234,105830.0,105820.0,0.34]
[1748853255694,1.07590234,105830.0,105820.0,0.34877127]
[1748853255695,0.81157856,105830.0,105820.0,0.34877127]
[1748853255894,1.21865371,105830.0,105820.0,0.34]
[1748853256769,0.19845018,105820.0,105810.0,0.3574]
[1748853256987,0.59143184,105820.0,105810.0,0.36617367]
[1748853257225,0.59143184,105820.0,105810.0,0.36617378]
[1748853258065,0.59143184,105820.0,105810.0,0.36617374]
[1748853258696,0.59143184,105820.0,105810.0,0.36617352]
[1748853258878,0.59143184,105820.0,105810.0,0.36617353]
[1748853259086,0.59143184,105820.0,105810.0,0.3661735]
[1748853259619,0.59143184,105820.0,105810.0,0.36617378]
[1748853259824,0.59143184,105820.0,105810.0,0.3574]
[1748853259953,0.60088158,105820.0,105810.0,0.36685081]
[1748853260155,0.59143184,105820.0,105810.0,0.3574]
[1748853261055,0.59143184,105820.0,105810.0,0.36617327]
[1748853261456,0.59143184,105820.0,105810.0,0.36617289]
[1748853261862,0.59143184,105820.0,105810.0,0.37562379]
[1748853262388,0.59143184,105820.0,105810.0,0.3668509]
[1748853262595,0.59143184,105820.0,105810.0,0.37562361]
[1748853262797,0.72203391,105820.0,105810.0,0.34]
[1748853262976,0.81788821,105820.0,105810.0,0.34]
[1748853263176,0.33239533,105820.0,105810.0,0.34]
[1748853263388,0.70877699,105820.0,105810.0,0.34]
[1748853263638,0.31579533,105820.0,105810.0,0.34]
[1748853264043,0.70877699,105820.0,105810.0,0.34]
[1748853265635,4.82826899,105820.0,105810.0,0.34]
[1748853265832,4.82826899,105820.0,105790.0,0.033]
[1748853265833,0.20793904,105800.0,105790.0,0.033]
[1748853266042,0.20793904,105800.0,105790.0,0.38834971]
[1748853266043,0.6009207,105800.0,105790.0,0.38834971]
[1748853266275,0.6009207,105800.0,105790.0,0.38835031]
[1748853266474,0.6009207,105800.0,105790.0,0.37185031]
[1748853266673,0.6009207,105800.0,105790.0,0.37185189]
[1748853267255,0.6009207,105800.0,105790.0,0.36527251]
[1748853267588,0.6009207,105800.0,105790.0,0.34877251]
[1748853267916,0.68868046,105800.0,105790.0,0.34877114]
[1748853268033,0.23977989,105800.0,105790.0,0.34]
[1748853268234,1.00562155,105800.0,105790.0,0.3589051]
[1748853268485,0.40918251,105800.0,105790.0,0.60026327]
[1748853268691,0.40918251,105800.0,105790.0,0.59081121]
[1748853268692,0.42808582,105800.0,105790.0,0.59081121]
[1748853268915,0.02835412,105800.0,105790.0,0.60026345]
[1748853269111,0.41863412,105800.0,105790.0,0.60971551]
[1748853269337,0.42808582,105800.0,105790.0,0.6097156]
[1748853269581,0.43753761,105800.0,105790.0,0.6097156]
[1748853270033,0.62657352,105800.0,105790.0,0.56245521]
[1748853270234,1.10159621,105800.0,105790.0,0.33054875]
[1748853270434,1.10159621,105800.0,105790.0,0.3210975]
[1748853270853,1.10159621,105800.0,105790.0,0.31164625]
[1748853271261,1.10159621,105800.0,105790.0,0.302195]
[1748853272060,1.19946697,105800.0,105790.0,0.302195]
[1748853272474,1.11859621,105800.0,105790.0,0.302195]
[1748853273113,0.19850637,105790.0,105780.0,0.22467854]
[1748853273319,0.19850637,105790.0,105780.0,0.23344237]
[1748853273524,0.19850637,105790.0,105780.0,0.23413176]
[1748853273706,0.59148803,105790.0,105780.0,0.02615358]
[1748853273880,0.19850637,105790.0,105780.0,0.03560707]
[1748853274084,0.19850637,105790.0,105780.0,0.04506047]
[1748853274267,0.21741147,105790.0,105780.0,0.24358543]
[1748853274479,0.21789852,105790.0,105780.0,0.24358543]
[1748853274707,0.62604378,105790.0,105780.0,0.24358543]
[1748853274929,0.61659136,105790.0,105780.0,0.23413212]
[1748853275129,0.5053661,105790.0,105780.0,0.26963856]
[1748853275458,0.5053661,105790.0,105780.0,0.26963865]
[1748853276300,0.5053661,105790.0,105780.0,0.25073212]
[1748853276493,0.5053661,105790.0,105780.0,0.26018543]
[1748853277117,0.5053661,105790.0,105780.0,0.24358543]
[1748853277254,0.31631232,105790.0,105780.0,0.27033847]
[1748853277656,0.31631232,105790.0,105780.0,0.27033865]
[1748853277899,0.31631232,105790.0,105780.0,0.3162728]
[1748853278102,0.5053661,105790.0,105780.0,0.26088507]
[1748853278303,0.5053661,105790.0,105780.0,0.2703382]
[1748853279869,0.5053661,105790.0,105780.0,0.26088507]
[1748853280105,0.5053661,105790.0,105770.0,0.58261113]
[1748853280106,0.02835975,105780.0,105770.0,0.58261113]
[1748853280319,0.04018978,105780.0,105770.0,0.61027901]
[1748853280542,0.04018978,105780.0,105770.0,0.61027939]
[1748853280977,0.04018978,105780.0,105770.0,0.61027929]
[1748853281212,0.03073629,105780.0,105770.0,0.61973314]
[1748853281417,0.04964318,105780.0,105770.0,0.61973314]
[1748853281635,0.04964318,105780.0,105770.0,0.61973426]
[1748853281851,0.03073629,105780.0,105770.0,0.61973426]
[1748853282063,0.04018969,105780.0,105770.0,0.61973426]
[1748853282268,0.04964318,105780.0,105770.0,0.61973426]
[1748853282970,0.04964318,105780.0,105770.0,0.61973296]
[1748853283386,0.34592318,105780.0,105770.0,0.61973449]
[1748853283624,0.34354592,105780.0,105770.0,0.61973449]
[1748853283844,0.32459903,105780.0,105770.0,0.61973449]
[1748853284057,0.33405243,105780.0,105770.0,0.61973449]
[1748853284263,0.02835903,105780.0,105770.0,0.61973612]
[1748853284475,0.03781243,105780.0,105770.0,0.61973612]
[1748853284700,0.03073629,105780.0,105770.0,0.61973612]
[1748853284886,0.04018969,105780.0,105770.0,0.61973872]
[1748853285039,0.03073629,105780.0,105770.0,0.61973872]
[1748853285248,0.04018969,105780.0,105770.0,0.6197385]
[1748853285475,0.04018969,105780.0,105770.0,0.61097312]
[1748853285626,0.03073629,105780.0,105770.0,0.6197385]
[1748853285826,0.03073629,105780.0,105770.0,0.61097312]
[1748853286103,0.04018969,105780.0,105770.0,0.59387312]
[1748853286278,0.03073629,105780.0,105770.0,0.61993842]
[1748853286485,0.04018969,105780.0,105770.0,0.61117312]
[1748853286685,0.04018969,105780.0,105770.0,0.6199398]
[1748853286887,0.03073629,105780.0,105770.0,0.6199398]
[1748853287481,0.02835903,105780.0,105770.0,0.61993968]
[1748853287684,0.0189059,105780.0,105770.0,0.61993968]
[1748853287918,0.09344705,105790.0,105780.0,0.26158471]
[1748853288131,0.40839108,105790.0,105780.0,0.26158471]
[1748853288823,0.32488323,105790.0,105780.0,0.26158471]
[1748853289485,0.33433565,105790.0,105780.0,0.26158471]
[1748853290395,0.34378824,105790.0,105780.0,0.26158489]
[1748853290603,0.34378904,105790.0,105780.0,0.26158489]
[1748853290906,0.34378904,105790.0,105780.0,0.27103793]
[1748853291790,0.43662904,105790.0,105780.0,0.27103793]
[1748853291933,0.46271305,105790.0,105780.0,0.27103793]
[1748853292595,0.07383305,105790.0,105780.0,0.27103793]
[1748853292804,0.02657106,105790.0,105780.0,0.61980849]
[1748853293012,0.02657106,105790.0,105780.0,1.01937023]
[1748853293221,0.02657106,105790.0,105780.0,1.06279015]
[1748853293420,0.02657106,105790.0,105780.0,1.06937049]
[1748853293855,0.02657106,105790.0,105780.0,0.67638883]
[1748853294058,0.02657106,105790.0,105780.0,0.66761655]
[1748853294264,0.02657106,105790.0,105780.0,0.6676178]
[1748853294465,0.02657106,105790.0,105780.0,0.67639181]
[1748853294672,0.02657106,105790.0,105780.0,0.6610373]
[1748853294880,0.02657106,105790.0,105780.0,0.67639523]
[1748853296116,0.02657106,105790.0,105780.0,0.66981567]
[1748853296327,0.02657106,105790.0,105780.0,0.67639946]
[1748853296538,0.02657106,105790.0,105780.0,0.66694651]
[1748853296737,0.02657106,105790.0,105780.0,0.66694652]
[1748853296961,0.04547527,105790.0,105780.0,0.65749348]
[1748853297309,0.04547527,105790.0,105780.0,0.65158435]
[1748853297513,0.04547527,105790.0,105780.0,0.64804187]
[1748853297714,0.04785253,105790.0,105780.0,0.64804223]
[1748853297920,0.24635873,105790.0,105780.0,0.65749545]
[1748853298118,0.24398147,105790.0,105780.0,0.65816976]
[1748853298483,0.24398147,105790.0,105780.0,0.60749664]
[1748853298666,0.25343398,105790.0,105780.0,0.64804334]
[1748853298899,0.25343398,105790.0,105780.0,0.65749634]
[1748853299130,0.8628178,105790.0,105780.0,0.00877966]
[1748853299347,0.2174516,105770.0,105760.0,0.0337]
[1748853299554,0.2174516,105770.0,105760.0,0.05852807]
[1748853299756,0.2174516,105770.0,105760.0,0.24763548]
[1748853299999,0.2174516,105770.0,105760.0,0.59050166]
[1748853300204,0.21745151,105770.0,105760.0,0.58104693]
[1748853300414,0.22690589,105770.0,105760.0,0.59422319]